bitfinex/quotes_ETHUSD_20241030
["timestamp","ask_amount","ask_price","bid_price","bid_amount"]
[1730257443350,3.88903559,2627.4,2626.9,7.61343]
[1730257443547,0.08299559,2627.4,2627.0,0.28392499]
[1730257443765,3.80619,2627.3,2627.0,0.28392499]
[1730257443962,3.80619,2627.3,2627.0,0.2839515]
[1730257444258,0.08292086,2627.2,2626.9,1.42154621]
[1730257444462,3.80612,2627.4,2626.9,1.42154621]
[1730257444611,0.08292086,2627.3,2626.9,0.28382545]
[1730257444811,3.88911086,2627.3,2626.8,4.09073545]
[1730257445920,0.08292086,2627.3,2627.0,3.35774909]
[1730257446113,0.08292086,2627.3,2627.1,3.80647]
[1730257446421,0.08268278,2627.2,2627.1,4.09013501]
[1730257446642,3.80576,2627.6,2627.1,4.09013501]
[1730257446643,3.80576,2627.6,2627.1,5.00385691]
[1730257446924,0.08269662,2627.5,2627.1,4.7201919]
[1730257447822,0.08269662,2627.5,2627.1,3.80647]
[1730257448155,3.8059,2627.5,2627.1,3.80647]
[1730257448357,0.08272156,2627.4,2627.1,3.80647]
[1730257449252,0.08272156,2627.4,2627.3,6.88778]
[1730257449562,0.7515,2628.6,2628.1,3.80502]
[1730257449762,0.7515,2628.6,2628.0,3.80503]
[1730257449763,4.936292,2628.6,2628.0,3.80503]
[1730257449963,0.07720095,2628.5,2628.0,3.80503]
[1730257450165,0.07720095,2628.5,2628.1,3.80502]
[1730257450365,0.07720095,2628.5,2628.0,7.61011]
[1730257450566,0.07720095,2628.5,2628.0,3.80503]
[1730257450965,3.80461,2628.4,2627.9,3.80529]
[1730257451194,3.88173095,2628.5,2628.0,3.80515]
[1730257451491,4.6863173,2628.5,2628.0,3.80515]
[1730257451698,0.07737875,2628.4,2628.0,3.80515]
[1730257452458,0.07737875,2628.4,2628.0,3.80506]
[1730257452703,0.07737875,2628.4,2628.1,3.80501]
[1730257452882,0.07737875,2628.4,2628.2,3.80487]
[1730257453087,0.7515,2628.8,2628.3,4.185227]
[1730257453402,0.7515,2628.8,2628.3,4.971827]
[1730257453403,4.55553,2628.8,2628.3,4.971827]
[1730257453573,0.07740932,2628.7,2628.3,4.971827]
[1730257453974,3.80418,2628.7,2628.3,0.380487]
[1730257454175,0.07740932,2628.6,2628.2,3.80487]
[1730257454376,3.88172932,2628.6,2628.1,3.80502]
[1730257454764,0.07740932,2628.6,2628.1,3.80502]
[1730257455261,0.07740932,2628.6,2628.2,3.80488]
[1730257457690,3.88170932,2628.6,2628.1,4.08861014]
[1730257457903,3.88170932,2628.6,2628.2,0.86802701]
[1730257458463,3.80445,2628.5,2628.1,0.28368827]
[1730257458685,0.07746485,2628.4,2628.0,4.59166]
[1730257459700,0.07746485,2628.4,2627.9,0.28368827]
[1730257459883,0.07746485,2628.4,2627.8,4.87564827]
[1730257459884,4.55625,2628.3,2627.8,4.87564827]
[1730257460202,4.55625,2628.3,2627.9,0.53294077]
[1730257460388,0.07746485,2628.2,2627.9,0.53294077]
[1730257460577,0.07746485,2628.2,2627.9,0.81676342]
[1730257460777,4.55625,2628.3,2627.9,0.81676509]
[1730257461194,4.55625,2628.3,2627.9,4.62199509]
[1730257461195,0.07746485,2628.2,2627.9,4.62199509]
[1730257461375,0.07746485,2628.2,2628.0,0.92139551]
[1730257461578,0.7515,2628.3,2628.0,1.20521983]
[1730257461785,0.07746485,2628.1,2628.0,1.20521983]
[1730257461980,0.7515,2628.3,2628.0,1.20521983]
[1730257462182,0.07746485,2628.1,2628.0,1.20521983]
[1730257462368,0.7515,2628.3,2628.0,1.20521983]
[1730257462566,0.07746485,2628.1,2628.0,1.20521983]
[1730257462772,4.55626,2628.3,2628.0,0.92139551]
[1730257463110,4.55626,2628.3,2627.9,0.28382432]
[1730257463410,0.07741208,2628.2,2627.8,4.59196]
[1730257463583,0.07741208,2628.2,2627.8,4.87578432]
[1730257463818,4.55626,2628.3,2627.8,4.59196]
[1730257463986,0.07741208,2628.1,2627.8,4.59196]
[1730257464189,4.55626,2628.3,2627.8,6.16882249]
[1730257464499,4.55626,2628.3,2627.9,0.28392884]
[1730257464803,0.07741488,2628.2,2627.9,0.28392884]
[1730257465170,4.55626,2628.3,2627.9,0.73821498]
[1730257465414,0.07741488,2628.1,2627.9,0.28392884]
[1730257465570,4.55626,2628.3,2627.9,0.28392884]
[1730257465916,0.07741488,2628.2,2627.9,0.28392884]
[1730257466408,4.55626,2628.3,2627.9,0.28392884]
[1730257466867,0.07741488,2628.2,2627.9,0.28392884]
[1730257467065,4.55626,2628.3,2627.9,0.28392884]
[1730257467304,0.07741488,2628.2,2627.9,0.28392884]
[1730257467711,3.80489,2628.2,2627.9,0.28392884]
[1730257468004,4.55626,2628.3,2627.7,0.28392884]
[1730257468005,0.7515,2627.9,2627.7,0.28392884]
[1730257468210,0.7515,2627.9,2627.6,0.28392884]
[1730257468211,4.55682,2627.9,2627.6,0.28392884]
[1730257468507,4.55682,2627.9,2627.4,0.28392884]
[1730257468508,3.88294375,2627.8,2627.4,0.28392884]
[1730257468908,3.88294375,2627.8,2627.4,4.08996884]
[1730257468909,0.07740375,2627.8,2627.4,4.08996884]
[1730257470609,0.07740375,2627.8,2627.5,0.28392884]
[1730257470970,0.07740375,2627.8,2627.4,4.08996884]
[1730257471205,0.07740375,2627.8,2627.5,0.28392884]
[1730257471415,0.07740375,2627.8,2627.5,4.08981884]
[1730257471912,0.07740375,2627.8,2627.5,3.80589]
[1730257472083,0.07740375,2627.8,2627.5,4.09012145]
[1730257473310,0.07740375,2627.8,2627.6,0.28423145]
[1730257474304,0.07740375,2627.8,2627.6,4.08994145]
[1730257475503,0.07740375,2627.8,2627.7,0.28423145]
[1730257475708,0.07740375,2627.8,2627.6,0.28423145]
[1730257476012,0.07740375,2627.8,2627.7,0.28423145]
[1730257476206,0.07740375,2627.8,2627.6,0.28423145]
[1730257476520,0.8159,2627.6,2627.4,1.24868077]
[1730257476737,3.80589,2627.5,2627.4,0.79364717]
[1730257476889,3.88312987,2627.5,2627.4,0.79364717]
[1730257477093,0.07723987,2627.5,2627.4,0.79364717]
[1730257477491,0.07723987,2627.5,2627.2,3.80632]
[1730257477774,0.07723987,2627.5,2627.2,4.60922]
[1730257478116,0.07723987,2627.5,2627.3,3.80618]
[1730257478609,0.8159,2627.8,2627.4,3.80604]
[1730257480081,0.8159,2627.8,2627.4,3.80599]
[1730257481291,0.8159,2627.8,2627.2,0.8029]
[1730257481891,0.8159,2628.0,2627.3,0.0761171]
[1730257482090,0.8159,2628.0,2627.3,0.49964258]
[1730257482587,0.8159,2628.0,2627.2,0.8029]
[1730257482588,3.3562377,2627.9,2627.2,0.8029]
[1730257482792,0.8159,2627.8,2626.9,0.8029]
[1730257484591,0.8159,2627.8,2626.9,0.87902732]
[1730257485418,0.8159,2627.8,2626.9,0.8029]
[1730257485805,0.8159,2627.8,2627.0,0.52352138]
[1730257486019,0.07728154,2627.7,2627.0,0.52352138]
[1730257487733,0.07728154,2627.7,2627.1,0.07611967]
[1730257488038,0.07728154,2627.7,2627.0,0.52352138]
[1730257488327,0.07728154,2627.7,2627.1,0.07611966]
[1730257488528,0.07728154,2627.7,2627.2,0.7583]
[1730257490398,0.07728154,2627.7,2627.2,0.83441908]
[1730257490734,0.07728154,2627.7,2627.2,0.7583]
[1730257491030,0.07728154,2627.7,2627.1,0.2884641]
[1730257491231,0.8305,2627.6,2626.9,0.7583]
[1730257491437,0.8305,2627.6,2626.9,1.17023761]
[1730257491610,0.07724541,2627.5,2626.9,1.96612815]
[1730257491951,0.07724541,2627.5,2627.0,0.79589054]
[1730257492729,0.8305,2627.6,2627.0,0.79589054]
[1730257496501,1.50245859,2627.3,2627.0,0.79589054]
[1730257496700,0.8305,2627.2,2626.7,0.79589054]
[1730257496920,0.8305,2627.2,2626.8,1.50245859]
[1730257497815,0.8305,2627.6,2626.8,1.50245859]
[1730257498141,0.07705087,2627.5,2626.8,1.50245859]
[1730257498755,0.8305,2627.6,2626.8,1.50245859]
[1730257499256,0.07705087,2627.5,2626.8,1.57858681]
[1730257499419,0.07705087,2627.5,2626.9,0.23744774]
[1730257499616,0.8305,2627.6,2626.9,0.23744774]
[1730257499951,0.07705087,2627.5,2626.9,0.23744774]
[1730257500451,0.8305,2627.6,2626.9,0.31357592]
[1730257500761,0.8305,2627.6,2627.1,1.50245859]
[1730257501061,0.07705087,2627.5,2627.1,1.76524196]
[1730257503159,0.07705087,2627.5,2627.1,1.84136343]
[1730257503463,0.07705087,2627.5,2627.1,1.76524196]
[1730257504023,0.07705087,2627.5,2627.3,1.50245859]
[1730257504525,0.8101,2627.9,2627.3,2.29834913]
[1730257504841,0.07457708,2627.8,2627.4,0.22983491]
[1730257506656,0.07457708,2627.8,2627.4,1.04163491]
[1730257507172,0.07457708,2627.8,2627.4,0.22983491]
[1730257507377,0.07457708,2627.8,2627.4,1.02572545]
[1730257508377,0.8101,2627.9,2627.4,1.02572545]
[1730257508670,0.8101,2627.9,2627.5,0.37220199]
[1730257508834,0.07463007,2627.8,2627.5,0.37220199]
[1730257509175,0.8101,2627.9,2627.5,1.16809253]
[1730257509677,0.07463007,2627.8,2627.5,0.37220199]
[1730257509834,0.8101,2627.9,2627.5,0.37220199]
[1730257510030,0.07463007,2627.8,2627.5,1.16809253]
[1730257510529,0.8101,2627.9,2627.6,0.25917633]
[1730257511170,0.8101,2628.2,2627.6,0.25917633]
[1730257511381,0.8101,2628.2,2627.6,1.05506687]
[1730257511542,0.0746998,2628.1,2627.6,1.05506687]
[1730257511870,0.0746998,2628.1,2627.7,0.5011473]
[1730257513386,0.0746998,2628.1,2627.7,1.29703784]
[1730257514583,0.0746998,2628.1,2627.8,0.79589054]
[1730257516289,0.0746998,2628.1,2627.7,1.29703784]
[1730257516590,0.0746998,2628.1,2627.9,1.50245859]
[1730257516759,0.0746998,2628.1,2628.0,1.0273164]
[1730257516962,0.595368,2628.4,2628.0,1.0273164]
[1730257517583,0.07228022,2628.3,2628.0,1.0273164]
[1730257518897,0.07228022,2628.3,2628.1,2.29834913]
[1730257519190,0.8101,2628.5,2628.1,2.29834913]
[1730257519353,0.8101,2628.5,2628.2,0.2529775]
[1730257519554,0.8101,2628.9,2628.2,0.2529775]
[1730257523608,0.8101,2628.9,2628.3,0.7865]
[1730257526605,0.8101,2628.9,2628.3,2.28895859]
[1730257530809,0.8101,2628.9,2628.3,0.7865]
[1730257531106,0.8101,2628.9,2628.0,0.795]
[1730257531107,1.5749738,2628.8,2628.0,0.795]
[1730257531312,0.7606,2628.7,2628.0,0.795]
[1730257531472,0.07254597,2628.6,2628.0,0.795]
[1730257532575,0.07254597,2628.6,2628.1,1.50245859]
[1730257532771,0.07254597,2628.6,2628.1,1.73220445]
[1730257537813,0.07254597,2628.6,2628.2,0.795]
[1730257538015,0.7606,2628.9,2628.2,0.795]
[1730257538214,0.07254316,2628.5,2628.2,0.795]
[1730257538522,0.7606,2628.9,2628.2,0.795]
[1730257538808,1.32495267,2628.9,2628.2,0.795]
[1730257539012,0.07254316,2628.8,2628.2,0.795]
[1730257543304,0.07254316,2628.8,2628.3,0.795]
[1730257543814,0.07254316,2628.8,2628.3,2.29745859]
[1730257544337,0.07257953,2628.7,2628.3,2.58149149]
[1730257544537,0.07257953,2628.7,2628.5,1.50245859]
[1730257544695,0.59532855,2629.0,2628.5,1.50245859]
[1730257544891,0.07260189,2628.6,2628.5,2.29745859]
[1730257545111,0.59532855,2629.0,2628.5,2.29745859]
[1730257545312,0.07266342,2628.6,2628.5,0.795]
[1730257545644,0.59532855,2629.0,2628.6,0.795]
[1730257545792,2.78513952,2629.1,2629.0,0.795]
[1730257548241,2.78513952,2629.1,2628.8,1.06195334]
[1730257548439,2.78513952,2629.1,2628.9,1.50245859]
[1730257548604,2.78513952,2629.1,2628.9,1.78661193]
[1730257548807,2.78513952,2629.1,2629.0,0.25644119]
[1730257549914,2.78513952,2629.1,2629.0,1.03424119]
[1730257551455,2.78513952,2629.1,2629.0,4.39907406]
[1730257551624,0.5951376,2629.5,2629.1,3.0]
[1730257551829,0.8275,2630.1,2629.4,1.50245859]
[1730257552024,0.8275,2630.1,2629.4,1.7588914]
[1730257553142,0.07004729,2630.0,2629.4,1.7588914]
[1730257555159,0.07004729,2630.0,2629.4,0.25643281]
[1730257556326,3.80274,2629.7,2629.4,0.25643281]
[1730257556749,7.60553,2629.7,2629.4,0.25643281]
[1730257556936,0.07004729,2629.6,2629.4,0.25643281]
[1730257557137,0.07004729,2629.6,2629.5,4.5808]
[1730257557369,0.59501871,2630.2,2629.5,5.1294246]
[1730257557568,0.59501871,2630.2,2629.8,1.50245859]
[1730257557569,4.39707871,2630.2,2629.8,1.50245859]
[1730257557768,0.07022672,2630.1,2629.8,1.50245859]
[1730257560581,3.87235672,2630.1,2629.6,4.58065]
[1730257560752,0.07022672,2630.1,2629.7,0.71257673]
[1730257562487,0.07022672,2630.1,2629.7,4.51525673]
[1730257562970,0.07022672,2630.1,2629.8,3.80256]
[1730257563986,0.07022672,2630.1,2629.9,0.7787]
[1730257570999,0.07022672,2630.1,2629.9,4.58112]
[1730257571198,0.07022672,2630.1,2630.0,0.838368]
[1730257575286,0.07022672,2630.1,2630.0,4.640648]
[1730257576212,0.07022672,2630.1,2630.0,7.78038132]
[1730257576502,3.80142,2630.6,2630.1,3.80212]
[1730257576711,0.59487177,2630.4,2630.1,5.30457859]
[1730257577014,3.80142,2630.6,2630.2,0.92066466]
[1730257577213,0.59487493,2630.4,2630.2,4.72264466]
[1730257579592,0.59487493,2630.4,2630.3,0.7787]
[1730257581018,0.59487493,2630.4,2630.3,6.08299859]
[1730257581217,0.59487493,2630.4,2630.3,7.39207692]
[1730257582677,0.59487493,2630.4,2630.3,6.37944607]
[1730257583415,0.59487493,2630.4,2630.3,8.66444607]
[1730257585659,0.59487493,2630.4,2630.3,9.44314607]
[1730257586960,0.59487493,2630.4,2630.3,12.44314607]
[1730257587161,4.6293,2631.1,2630.6,7.60263]
[1730257587319,0.8286,2631.1,2630.7,2.34059159]
[1730257587521,0.06867913,2631.0,2630.7,6.14185159]
[1730257587721,0.06867913,2631.0,2630.8,3.80112]
[1730257588417,4.39533015,2631.2,2630.9,0.7787]
[1730257588616,0.06875756,2631.1,2630.9,0.7787]
[1730257588821,0.06875756,2631.1,2630.9,1.85847378]
[1730257589430,0.06875756,2631.1,2630.9,3.36093237]
[1730257589631,0.8286,2631.3,2631.0,3.80083]
[1730257589927,3.80013,2631.5,2631.0,3.80083]
[1730257589928,0.06895639,2631.2,2631.0,3.80083]
[1730257590142,0.06895639,2631.2,2631.0,4.08425208]
[1730257590457,5.18874966,2631.5,2631.1,4.54518845]
[1730257590458,1.38863966,2631.5,2631.1,4.54518845]
[1730257590618,1.38863966,2631.5,2631.2,3.80047]
[1730257590619,0.59473966,2631.5,2631.2,3.80047]
[1730257590819,0.7939,2631.7,2631.2,4.57306]
[1730257591057,0.7939,2631.7,2631.3,3.80032]
[1730257591221,0.06903199,2631.6,2631.5,4.57271]
[1730257591418,4.5925,2632.6,2631.7,6.85742]
[1730257591650,0.06213426,2632.3,2632.0,5.30176859]
[1730257591965,0.06213426,2632.3,2632.1,3.79913]
[1730257592448,0.06213426,2632.3,2632.0,5.30176859]
[1730257593571,0.06213426,2632.3,2632.0,1.50245859]
[1730257593924,0.06213426,2632.3,2632.0,5.30183859]
[1730257595149,0.06213426,2632.3,2632.0,1.50245859]
[1730257598067,0.65659139,2632.3,2632.0,1.50245859]
[1730257600613,0.65659139,2632.3,2632.0,5.30182859]
[1730257601179,0.65659139,2632.3,2632.1,0.7726]
[1730257603331,4.59307,2632.2,2631.7,1.50245859]
[1730257603704,0.06280592,2632.1,2631.7,1.50245859]
[1730257604512,0.06280592,2632.1,2631.7,5.30218859]
[1730257605798,0.06280592,2632.1,2631.8,3.79966]
[1730257606437,0.06280592,2632.1,2631.7,1.50245859]
[1730257606674,0.06280592,2632.1,2631.7,5.30221859]
[1730257607137,0.06280592,2632.1,2631.9,5.30189859]
[1730257607309,0.06280592,2632.1,2631.9,1.50245859]
[1730257607498,0.06280592,2632.1,2632.0,4.60459]
[1730257607914,0.59445713,2632.3,2632.0,4.60459]
[1730257608099,0.59445713,2632.3,2632.1,1.50245859]
[1730257608743,0.59445713,2632.3,2632.2,3.7991]
[1730257608949,0.59445713,2632.3,2632.2,3.87507452]
[1730257610412,0.59445713,2632.3,2632.2,5.13549718]
[1730257610616,19.024,2632.4,2632.3,3.79895]
[1730257611043,19.024,2632.4,2632.3,5.30140859]
[1730257611915,19.024,2632.4,2632.3,3.79895]
[1730257612314,19.024,2632.4,2632.3,5.30140859]
[1730257612749,19.024,2632.4,2632.2,4.6042]
[1730257613318,19.024,2632.4,2632.2,3.799]
[1730257614220,19.024,2632.4,2632.3,5.30140859]
[1730257614420,19.024,2632.4,2632.3,3.79895]
[1730257615573,3.79744,2633.4,2632.3,3.79895]
[1730257615574,0.7632,2635.1,2634.0,7.4447]
[1730257615720,0.7632,2635.1,2634.0,14.6527]
[1730257615924,0.7632,2635.1,2634.0,16.60105226]
[1730257616116,0.7632,2635.1,2634.0,18.18776747]
[1730257616361,3.79461,2635.4,2634.0,18.18776747]
[1730257616362,0.7632,2635.4,2634.0,18.58241054]
[1730257616573,0.7632,2635.4,2634.8,3.79535]
[1730257616751,3.79394,2635.8,2634.8,7.1388946]
[1730257617058,0.7632,2635.7,2634.8,7.21478187]
[1730257618682,0.7632,2635.7,2634.8,11.56998187]
[1730257618843,0.7632,2635.7,2634.8,14.88547412]
[1730257620583,0.7632,2635.7,2634.8,14.09821089]
[1730257621283,0.7632,2635.7,2634.8,14.01313858]
[1730257622282,0.7632,2635.7,2634.8,14.01185267]
[1730257622648,0.7632,2635.7,2635.0,3.79497]
[1730257622850,0.06390395,2635.6,2635.0,8.84085736]
[1730257623557,0.06390395,2635.6,2635.1,3.79489]
[1730257623757,0.06390395,2635.6,2635.0,8.84085736]
[1730257624145,0.7632,2635.7,2635.0,8.84085736]
[1730257624351,0.7632,2635.7,2635.0,8.84083736]
[1730257624547,0.06262011,2635.6,2635.0,8.84083736]
[1730257624775,0.7632,2635.7,2635.1,0.07588013]
[1730257624951,0.7632,2635.7,2635.1,3.87078013]
[1730257625162,0.06262011,2635.6,2635.1,3.87078013]
[1730257625478,0.7632,2635.7,2635.1,5.22028941]
[1730257625853,0.06262011,2635.6,2635.1,3.87078013]
[1730257626191,0.7632,2635.7,2635.1,3.87078013]
[1730257626380,0.7632,2635.7,2635.1,3.7949]
[1730257626576,0.06262011,2635.6,2635.0,3.79495]
[1730257626952,4.55726,2635.7,2635.0,3.79495]
[1730257627289,4.55726,2635.7,2635.1,0.379495]
[1730257627453,0.06262011,2635.6,2635.1,0.379495]
[1730257627648,3.79434,2635.5,2635.1,0.379495]
[1730257627877,3.79474,2635.3,2634.8,0.78347534]
[1730257628201,0.06262851,2635.4,2634.8,4.57880534]
[1730257628497,7.58881,2635.5,2634.9,6.79518]
[1730257628498,0.06262851,2635.3,2634.9,6.79518]
[1730257628848,3.79434,2635.5,2634.9,6.79518]
[1730257629245,3.85714851,2635.4,2634.8,3.0]
[1730257629391,3.85714851,2635.4,2634.9,1.13743553]
[1730257630518,3.85714851,2635.4,2634.7,0.78347534]
[1730257630519,3.79495,2635.1,2634.7,0.78347534]
[1730257630716,3.79495,2635.1,2634.6,4.57909534]
[1730257631000,0.06255015,2635.0,2634.6,3.79562]
[1730257631213,3.79495,2635.1,2634.6,4.75118702]
[1730257631405,0.06043437,2634.9,2634.6,4.75118702]
[1730257631580,3.79495,2635.1,2634.6,5.53466236]
[1730257631910,0.06043437,2635.0,2634.6,4.73904236]
[1730257632071,0.06043437,2635.0,2634.6,8.53465236]
[1730257632267,3.79495,2635.1,2634.6,8.53465236]
[1730257632468,3.79495,2635.1,2634.7,1.08222117]
[1730257633715,8.42117,2635.3,2634.7,4.87769117]
[1730257633915,4.55586271,2638.4,2634.7,4.87769117]
[1730257633916,3.79115,2637.8,2637.1,3.79196]
[1730257634132,0.8318,2637.6,2637.2,0.380196]
[1730257634409,0.8318,2637.6,2637.0,3.79213]
[1730257634410,1.22769265,2637.6,2637.0,3.79213]
[1730257634611,1.22769265,2637.6,2636.9,4.56484]
[1730257634612,4.62312,2637.6,2636.9,4.56484]
[1730257634772,0.8318,2637.6,2637.1,3.79196]
[1730257634974,3.79083,2638.0,2637.2,0.07582255]
[1730257635330,3.79093,2637.9,2637.2,3.7918]
[1730257635469,3.79093,2637.9,2637.1,3.79193]
[1730257635676,4.62255,2638.0,2637.3,3.79175]
[1730257636220,0.8318,2638.0,2637.1,3.79192]
[1730257636423,3.79099,2637.9,2637.1,3.79192]
[1730257636762,0.8318,2638.0,2637.1,3.79192]
[1730257636905,0.46982903,2637.9,2636.9,4.57493]
[1730257637218,3.79097,2637.9,2637.1,3.79203]
[1730257637377,0.8318,2638.0,2637.1,3.79203]
[1730257637576,4.62262,2638.0,2637.1,3.79195]
[1730257638018,4.62262,2638.0,2637.2,3.79183]
[1730257638019,0.8318,2638.0,2637.2,3.79183]
[1730257638320,4.6226,2638.0,2637.1,7.58389]
[1730257638491,5.084845,2638.0,2637.1,4.683589]
[1730257638820,0.05420092,2637.9,2637.1,0.891649]
[1730257639379,3.84513092,2637.9,2637.1,0.891649]
[1730257639922,3.84513092,2637.9,2637.2,0.07581811]
[1730257640526,0.05420092,2637.9,2637.2,0.07581811]
[1730257641228,0.05420092,2637.9,2637.2,0.60676682]
[1730257642237,3.84510092,2637.9,2637.2,0.60676682]
[1730257642532,3.84510092,2637.9,2637.2,0.53094871]
[1730257642742,3.84510092,2637.9,2637.1,0.891649]
[1730257643127,7.63609092,2637.9,2637.1,0.891649]
[1730257643330,3.84510092,2637.9,2637.1,0.891649]
[1730257643643,1.294045,2638.0,2637.1,0.891649]
[1730257643859,0.05239422,2637.8,2637.1,0.891649]
[1730257644047,1.294045,2638.0,2637.2,0.5233739]
[1730257644217,1.294045,2638.0,2637.3,0.62581461]
[1730257644218,0.05239422,2637.7,2637.3,0.62581461]
[1730257644425,0.8318,2638.0,2637.3,0.62581461]
[1730257644606,0.05308672,2637.6,2637.3,0.62581461]
[1730257644805,0.8318,2638.0,2637.3,0.62581461]
[1730257645149,0.05308672,2637.9,2637.3,0.62581461]
[1730257645318,0.05308672,2637.9,2637.4,3.79410785]
[1730257645510,0.05308672,2637.9,2637.5,0.075811]
[1730257645705,0.05308672,2637.9,2637.4,3.79410785]
[1730257646453,3.79064,2638.1,2637.4,3.79410785]
[1730257646605,0.05308672,2637.8,2637.4,3.79410785]
[1730257646955,0.05308672,2637.7,2637.5,0.81357679]
[1730257647329,3.79064,2638.1,2637.5,0.81357679]
[1730257647503,0.05308672,2637.6,2637.5,0.81357679]
[1730257647703,0.07588027,2638.5,2637.5,0.81357679]
[1730257647704,3.78966,2638.8,2637.6,0.7726]
[1730257648037,3.78966,2638.8,2637.7,3.07580873]
[1730257648038,7.58056,2638.4,2637.7,3.07580873]
[1730257648250,3.79027,2638.4,2637.8,0.76396287]
[1730257648412,3.79027,2638.4,2637.9,0.07580132]
[1730257648608,3.79027,2638.4,2637.8,0.76396287]
[1730257648849,7.57998,2638.6,2637.8,4.55497287]
[1730257649153,7.57998,2638.6,2637.9,3.79089]
[1730257649154,3.78996,2638.6,2637.9,3.79089]
[1730257649334,7.57998,2638.6,2638.0,0.45548529]
[1730257649520,3.79005,2638.5,2638.0,0.45548529]
[1730257649958,3.7899,2638.6,2638.0,4.24621529]
[1730257650115,3.78962,2638.8,2638.0,0.45548529]
[1730257650315,3.78991,2638.6,2638.0,0.45548529]
[1730257650654,3.78991,2638.6,2638.1,0.42462653]
[1730257650812,7.57931,2638.8,2638.2,0.87759607]
[1730257651009,3.78996,2638.6,2638.2,0.07579607]
[1730257651328,0.05235796,2638.5,2638.2,0.07579607]
[1730257653152,3.84241796,2638.5,2638.2,0.07579607]
[1730257653357,0.05235796,2638.5,2638.0,2.283]
[1730257653523,3.79017,2638.4,2638.0,2.283]
[1730257653714,4.55975,2638.3,2637.9,1.39831544]
[1730257653945,4.55975,2638.3,2637.6,3.0]
[1730257653946,3.79056,2638.2,2637.6,6.79122]
[1730257654119,0.05239164,2638.2,2637.8,3.0]
[1730257654318,4.55975,2638.3,2637.8,5.283]
[1730257654618,3.79049,2638.2,2637.9,0.907417]
[1730257654818,0.05242534,2638.2,2637.9,0.907417]
[1730257655225,4.55975,2638.3,2637.9,0.907417]
[1730257655441,4.55975,2638.3,2637.7,2.283]
[1730257655442,3.84304534,2638.1,2637.7,2.283]
[1730257655660,3.79089,2637.9,2637.7,2.283]
[1730257655871,0.0523636,2637.8,2637.7,2.283]
[1730257656088,4.55981,2638.3,2637.7,2.283]
[1730257656258,3.8428336,2638.2,2637.8,0.07580851]
[1730257656458,0.0523636,2638.2,2637.8,0.07580851]
[1730257656775,8.35025,2638.3,2637.8,0.07580851]
[1730257656980,0.05234115,2638.1,2637.8,0.07580851]
[1730257657185,4.55981,2638.3,2637.8,0.07580851]
[1730257657489,4.5598,2638.3,2637.8,0.07580851]
[1730257657652,0.05234115,2638.2,2637.9,3.79087]
[1730257657853,0.7694,2638.3,2638.0,0.0758036]
[1730257658092,4.55973,2638.3,2638.0,0.0758036]
[1730257658265,0.05059644,2638.2,2638.0,0.0758036]
[1730257658468,0.7694,2638.7,2638.0,0.0758036]
[1730257658469,0.7694,2638.7,2638.1,6.0736]
[1730257658783,0.7694,2638.7,2638.2,3.79037]
[1730257658784,0.050501,2638.6,2638.2,3.79037]
[1730257659158,0.050501,2638.6,2638.3,3.79029]
[1730257659364,0.050501,2638.6,2638.3,3.8660825]
[1730257659565,0.050501,2638.6,2638.3,4.86005075]
[1730257659954,0.050501,2638.6,2638.3,4.78425825]
[1730257660151,0.050501,2638.6,2638.4,3.86587261]
[1730257660385,4.55881,2639.0,2638.4,3.86587261]
[1730257660690,4.55881,2639.0,2638.4,3.86596261]
[1730257660866,0.05063009,2638.9,2638.4,3.86596261]
[1730257661550,0.05063009,2638.9,2638.4,4.9592847]
[1730257661962,0.05063009,2638.9,2638.4,1.1691147]
[1730257662193,0.05063009,2638.9,2638.5,3.79001]
[1730257662394,3.84016009,2638.9,2638.6,0.0757877]
[1730257663593,3.84016009,2638.9,2638.5,0.85769263]
[1730257664097,3.7896,2638.8,2638.5,0.07578853]
[1730257664252,3.7896,2638.8,2638.4,1.87522619]
[1730257664253,3.84028059,2638.8,2638.4,0.7819041]
[1730257664453,3.84028059,2638.8,2638.4,1.58470813]
[1730257664895,0.05068059,2638.8,2638.5,0.07578999]
[1730257665107,3.78953,2638.9,2638.5,0.07578999]
[1730257665259,0.04899124,2638.7,2638.5,0.07578999]
[1730257665458,3.78953,2638.9,2638.5,0.07578999]
[1730257665672,0.04899124,2638.8,2638.5,1.34546142]
[1730257666580,3.83859124,2638.8,2638.5,1.34546142]
[1730257667191,0.04899124,2638.8,2638.5,1.34546142]
[1730257667606,3.83861124,2638.8,2638.5,1.34546142]
[1730257667949,3.83861124,2638.8,2638.4,0.7819041]
[1730257668154,3.83861124,2638.8,2638.5,0.7819041]
[1730257668155,0.04899124,2638.8,2638.5,0.7819041]
[1730257669086,3.83866124,2638.8,2638.6,0.07578864]
[1730257669490,3.83866124,2638.8,2638.4,0.7819041]
[1730257669696,3.78975,2638.7,2638.4,0.7819041]
[1730257670057,0.04907824,2638.6,2638.4,0.7819041]
[1730257670257,0.04907824,2638.6,2638.5,0.7819041]
[1730257670501,4.63245824,2638.6,2638.4,0.7819041]
[1730257670703,4.63245824,2638.6,2637.9,0.8018]
[1730257670704,3.7906,2638.1,2637.9,0.7819041]
[1730257671002,4.5841,2638.1,2637.9,0.7819041]
[1730257671203,3.79094,2637.9,2637.8,0.7819041]
[1730257671590,3.79094,2637.9,2637.7,0.7819041]
[1730257671792,0.04907824,2637.9,2637.6,0.7819041]
[1730257671991,0.04907824,2637.9,2637.7,0.7819041]
[1730257672613,0.04907824,2637.9,2637.8,0.07581312]
[1730257673002,0.7935,2638.1,2637.8,0.07581312]
[1730257673170,0.04890704,2637.9,2637.8,0.85771722]
[1730257673516,0.04890704,2637.9,2637.8,1.02907822]
[1730257673811,3.79055,2638.2,2637.8,1.02907822]
[1730257673984,0.04890704,2637.9,2637.8,1.02907822]
[1730257674180,4.58376,2638.4,2637.8,1.81098232]
[1730257674400,0.04890704,2637.9,2637.8,1.02907822]
[1730257674573,3.79053,2638.2,2637.8,1.02907822]
[1730257674775,3.79046,2638.3,2637.8,4.82010822]
[1730257675007,3.79046,2638.3,2637.7,3.79104]
[1730257675008,0.04880604,2638.1,2637.7,3.79104]
[1730257675217,3.79046,2638.2,2637.8,0.07580878]
[1730257675683,0.04879481,2638.1,2637.8,0.07580878]
[1730257676012,3.79046,2638.3,2637.8,3.86676878]
[1730257676219,0.04879481,2638.0,2637.8,3.79096]
[1730257676371,3.79046,2638.3,2637.8,5.37719281]
[1730257676907,3.83926481,2638.2,2637.8,5.37719281]